[Event "ESP-ch Teams Primera 2022"]
[Site "Sanxenxo Pontevedra"]
[Date "2022.09.21"]
[Round "5.2"]
[White "Naiditsch, Arkadij"]
[Black "Krysa, Leandro"]
[Result "1-0"]
[ECO "C77"]
[WhiteElo "2666"]
[BlackElo "2535"]
[Annotator "TA"]
[PlyCount "53"]
[EventDate "2022.09.17"]
[EventType "team-tourn"]
[EventCountry "ESP"]
[SourceTitle "playchess.com"]
[Source "ChessBase"]
[SourceQuality "1"]
[TimeControl "5400+30"]

{[%evp 22,53,8,-32,51,51,180,116,219,206,222,222,229,230,258,199,193,102,210,199,251,258,414,407,411,396,591,528,817,814,1580,1553,1265,1196]} 1. e4 e5 2. Nf3 Nc6 3. Bb5 a6 4. Ba4 Nf6 5. Qe2 b5 6. Bb3 Be7 7. c3 O-O 8. d4 d6 9. O-O Bg4 10. Rd1 exd4 11. cxd4 d5 12. exd5 (12. e5 $5 {[%cal Rb1c3]} Ne4 13. h3 $11) 12... Nb4 {C86: Closed Ruy Lopez: Worrall Attack.} ({Black should try} 12... Na5 $1 $15) 13. h3 $14 Bh5 (13... Bxf3 $14 14. Qxf3 Nbxd5) 14. Nc3 (14. g4 $1 $18 {[%cal Rg4h5]} Bg6 15. Ne5) 14... Re8 (14... Bxf3 $16 15. Qxf3 a5) 15. g4 $1 $18 Bg6 16. Ne5 {[#] Threatens to win with f4.} a5 $146 ({Predecessor:} 16... Nbxd5 17. Nxd5 Nxd5 18. Qf3 Nf6 19. Nxg6 hxg6 20. g5 Nh5 21. Bxf7+ Kh7 22. Bxe8 Qxe8 {½-½ (43) Grefe,J-Biyiasas,P Santa Monica 1974}) 17. Qxb5 Bc2 18. d6 cxd6 {[#]} 19. Bxf7+ {The board is on fire.} ({Much less strong is} 19. Nxf7 $6 Qb8 $16) (19. Bxc2 $1 $18 Nxc2 {[#]} 20. Nxf7 $1 Kxf7 21. Qb3+ d5 22. Qxc2) 19... Kf8 (19... Kh8 $16 {keeps fighting.}) 20. Bxe8 {[%cal Bf7e8,Be8d7,Bd7e6][%mdl 32]} Bxd1 (20... Qxe8 $142 21. Qxe8+ Rxe8) 21. Nd7+ ({Less strong is} 21. Nxd1 dxe5 22. a3 Qxe8 23. Qxe8+ Rxe8 24. axb4 Bxb4 $16) 21... Nxd7 $2 (21... Kg8 {was called for.}) 22. Bxd7 Bc2 {Inhibits Qf5+.} 23. Be6 Bd3 (23... Bg6 {is a better defense.} 24. Bf4 Qe8) 24. Qb7 {White is clearly winning.} d5 {[#]} 25. Bg5 $1 {[%mdl 512] aiming for Bxe7+.} Ra6 (25... Ba6 26. Bxe7+) 26. Bxe7+ Qxe7 27. Qb8+ {Weighted Error Value: White=0.27 (precise) /Black=0.67} 1-0

[Event "ESP-ch Teams Primera 2022"]
[Site "Sanxenxo Pontevedra"]
[Date "2022.09.21"]
[Round "5.3"]
[White "Ushenina, Anna"]
[Black "Ponomariov, Ruslan"]
[Result "1/2-1/2"]
[ECO "E32"]
[WhiteElo "2439"]
[BlackElo "2640"]
[Annotator "TA"]
[PlyCount "40"]
[EventDate "2022.09.17"]
[EventType "team-tourn"]
[EventCountry "ESP"]
[SourceTitle "playchess.com"]
[Source "ChessBase"]
[SourceQuality "1"]
[TimeControl "5400+30"]

{[%evp 10,40,22,-2,-10,-4,-13,-4,0,0,41,49,99,102,96,115,64,57,60,50,54,62,53,52,68,44,39,0,66,0,32,0,58]} 1. d4 {[%emt 0:01:03]} Nf6 {[%emt 0:00:07]} 2. c4 {[%emt 0:00:21]} e6 {[%emt 0:00:13]} 3. Nc3 {[%emt 0:00:10]} Bb4 {[%emt 0:00:23]} 4. Qc2 {[%emt 0:00:27]} O-O {[%emt 0:08:30]} 5. e4 {[%emt 0:00:18]} d6 {[%emt 0:00:40]} 6. e5 {[%emt 0:00:20]} dxe5 {[%emt 0:04:18] 6...Nfd7 is more advanced technology. E32: Nimzo-Indian: Classical (4 Qc2): 4...0-0.} 7. dxe5 {[%emt 0:00:16]} Ng4 {[%emt 0:00:08]} 8. Nf3 {[%emt 0:00:53] Black must now prevent h3.} Nc6 $1 {[%emt 0:00:20]} 9. Bf4 {[%emt 0:00:45] aiming for h3.} f6 {[%emt 0:01:57]} 10. Bd3 Bxc3+ {[%emt 0:23:59]} ({Not} 10... Ncxe5 11. Nxe5 (11. Bxh7+ Kh8 $16) 11... fxe5 12. Bxh7+ Kh8 13. Bg3 $16) (10... Nd4 $14 11. Bxh7+ Kh8) 11. bxc3 $16 {[%emt 0:45:25]} h6 {[%emt 0:09:26][%cal Rc6e5] [#]} 12. Rd1 $146 {[%emt 0:12:47]} ({Predecessor:} 12. O-O-O Qe7 13. exf6 Nxf6 14. Rhe1 Nh5 15. Be5 a5 16. Re4 a4 17. Rh4 Nf6 18. g4 {0-1 (27) Maisuradze,N (2213)-Mancini,M (2261) France 2006}) 12... Qe7 {[%emt 0:00:38][%cal Rc6e5]} 13. O-O {[%emt 0:21:09]} Ngxe5 {[%emt 0:10:04]} 14. Nxe5 {[%emt 0:00:20]} Nxe5 {[%emt 0:00:35]} 15. Bxe5 {[%emt 0:00:05]} fxe5 {[%emt 0:00:04]} 16. Qe2 {[%emt 0:00:07]} Qf6 {[%emt 0:02:35]} 17. Qe4 {[%emt 0:05:22][%mdl 1024] Hoping for Qh7+. White has compensation. White is more active.} Qf5 {[%emt 0:00:09] Prevents Qh7+.} 18. Qe2 {[%emt 0:00:17]} (18. Qe1 $5 {[%cal Rd3f5]} Qg5 19. Qe4 $14) 18... Qf6 {[%emt 0:00:31]} 19. Qe4 {[%emt 0:00:02] Qh7+ is the strong threat.} Qf5 {[%emt 0:00:14] Inhibits Qh7+.} 20. Qe2 {[%emt 0:00:09]} Qf6 $1 {[%emt 0:00:24] Weighted Error Value: White=0.16 (very precise) /Black=0.10 (very precise)} 1/2-1/2

[Event "ESP-ch Teams Primera 2022"]
[Site "Sanxenxo Pontevedra"]
[Date "2022.09.21"]
[Round "5.4"]
[White "Franco Alonso, Alejandro"]
[Black "Ladron De Guevara Pinto, Paolo"]
[Result "0-1"]
[ECO "A05"]
[WhiteElo "2432"]
[BlackElo "2429"]
[Annotator "TA"]
[PlyCount "76"]
[EventDate "2022.09.17"]
[EventType "team-tourn"]
[EventCountry "ESP"]
[SourceTitle "playchess.com"]
[Source "ChessBase"]
[SourceQuality "1"]
[TimeControl "5400+30"]

{[%evp 14,76,20,14,12,13,19,0,4,-14,-5,-17,-7,-43,0,-8,-11,-36,-28,-60,-61,-67,-50,-53,-49,-53,-43,-50,-50,-52,-59,-81,-72,-62,-75,-81,-76,-117,-117,-98,-85,-117,-117,-117,-117,-111,0,-114,-106,-141,-125,-144,-130,-111,-121,-470,-74,-72,0,0,0,0,25,-981,-874]} 1. Nf3 Nf6 2. g3 g6 3. b3 Bg7 4. Bb2 d5 5. c4 c6 6. Bg2 O-O 7. O-O a5 8. Na3 Na6 {A11: English Opening: 1...c6.} 9. d3 Re8 {[#]} 10. Qb1 $146 ({Predecessor:} 10. Qd2 Nc7 11. Rac1 Be6 12. cxd5 cxd5 13. Be5 Na6 14. Nb5 Qb6 15. Nc3 Nb4 16. Na4 {1-0 (27) Praggnanandhaa,R (2586)-Eche,S (2054) London 2019}) 10... Bg4 {The position is equal.} 11. Re1 Bxf3 12. Bxf3 e5 {[%cal Be7e5,Be5e4][%mdl 32]} 13. Bg2 Qd7 14. cxd5 cxd5 15. Rc1 b5 16. d4 e4 17. e3 b4 18. Nc2 Bf8 {[%cal Bg7f8,Bf8d6,Bd6b8][%mdl 32]} 19. a3 Nc7 20. axb4 axb4 21. Ne1 Rxa1 22. Bxa1 Bd6 23. Qc2 Qf5 24. Qe2 h5 25. h3 Ne6 26. Rc6 Bb8 27. Qb5 Kg7 $1 {[%cal Oh5h4]} 28. Bb2 (28. Qxb4 h4 29. gxh4 Qh5 $15) 28... Rh8 {[%cal Be8h8,Bh8c8,Bc8c2][%mdl 32] White must now prevent ...Ng5.} 29. Rb6 Ng5 ({Black should try} 29... Bc7 $17 30. Rc6 Ra8) 30. h4 (30. Qxb4 $2 Nxh3+ 31. Bxh3 Qxh3 $19) (30. Rxb8 $11 {was the only way to keep the balance.} Nxh3+ 31. Bxh3 Qxh3 32. Rxh8 (32. Qxb4 $2 Ng4 $19)) 30... Ng4 $17 31. Qe2 Ne6 32. Bh3 g5 $1 {And now ...gxh4 would win.} 33. Ng2 Rc8 $1 {[%cal Of5f2] aiming for ...Qxf2+!} 34. Ra6 $2 {[%mdl 8192] [#]} (34. Rb7 $17 {is a better chance.}) 34... gxh4 $2 (34... Qxf2+ $1 $19 {[%mdl 512] has better winning chances.} 35. Qxf2 Nxf2 36. Kxf2 (36. Bxe6 $2 fxe6 37. Kxf2 Rc2+ 38. Kg1 Rxb2 $19) 36... Rc2+ 37. Kg1 g4) 35. Nxh4 {[#]} Qg5 {Black is more active.} (35... Qxf2+ $1 $17 36. Qxf2 Nxf2 37. Kxf2 (37. Nf5+ Kf6 $17) 37... Rc2+ 38. Kf1 Kf6) 36. Ra1 Bxg3 37. fxg3 {Hoping for Rc1.} Nxe3 {Threatens to win with ...Rc2. Pair of Knights!} 38. Ng2 $2 {[%mdl 8192]} ({Wrong is} 38. Bxe6 $2 fxe6 39. Ra7+ Kg8 $19) (38. Kh1 $11 Rc2 {[#]} 39. Qxe3 $1 Qxe3 40. Nf5+ Kg6 41. Nxe3 Rxb2 42. Ra6 (42. Nxd5 Nxd4 43. Nf4+ Kf6 $11) 42... Rxb3 43. Nxd5 Rxg3 44. Bxe6 fxe6 45. Rxe6+ Kf7 46. Re7+ (46. Rxe4 b3 $11) 46... Kf8 47. Rc7 (47. Rxe4 b3 $11)) 38... Rc2 {Weighted Error Value: White=0.46/Black=0.34} 0-1

[Event "ESP-ch Teams Primera 2022"]
[Site "Sanxenxo Pontevedra"]
[Date "2022.09.21"]
[Round "5.5"]
[White "Bernabeu Lopez, Carlos Javier"]
[Black "Gonzalez De La Torre, Santiago"]
[Result "1/2-1/2"]
[ECO "B42"]
[WhiteElo "2415"]
[BlackElo "2439"]
[Annotator "TA"]
[PlyCount "36"]
[EventDate "2022.09.17"]
[EventType "team-tourn"]
[EventCountry "ESP"]
[SourceTitle "playchess.com"]
[Source "ChessBase"]
[SourceQuality "1"]
[TimeControl "5400+30"]

{[%evp 11,36,44,56,31,73,56,54,59,67,29,46,39,39,25,31,25,77,77,84,92,112,110,101,81,216,207,206]} 1. e4 c5 2. Nf3 e6 3. d4 cxd4 4. Nxd4 a6 5. Bd3 Bc5 6. Nb3 Be7 7. Bf4 {[#] B42: Sicilian: Kan Variation: 5 Bd3.} g6 $146 ({Predecessor:} 7... d6 8. O-O e5 9. Be3 Nf6 10. f3 O-O 11. Nc3 Be6 12. Nd2 d5 13. exd5 Bxd5 14. Qe2 Nbd7 15. Nxd5 Nxd5 {½-½ (25) Popov,M (961)-Kramskoi,V (1049) LSS email 2013}) 8. Qe2 {White is much more active.} d6 9. Nc3 {White is slightly better.} Nd7 10. Bd2 Qc7 11. O-O-O Ne5 12. f4 Nxd3+ 13. Qxd3 Nf6 (13... b5 $1 $11) 14. Rhf1 $16 {[%cal Of4f5]} O-O 15. f5 $36 {[%mdl 2048] White is on the roll.} b5 {...b4 is the strong threat.} 16. Bh6 Re8 17. fxg6 hxg6 {[#]} (17... fxg6 $16 18. Bg5 Rf8) 18. e5 $1 $18 dxe5 {Weighted Error Value: White=0.08 (flawless) /Black=0.32} 1/2-1/2

[Event "ESP-ch Teams Primera 2022"]
[Site "Sanxenxo Pontevedra"]
[Date "2022.09.21"]
[Round "5.6"]
[White "Buiza Prieto, Eihartze"]
[Black "Calzetta Ruiz, Monica"]
[Result "0-1"]
[ECO "C10"]
[WhiteElo "2080"]
[BlackElo "2227"]
[Annotator "TA"]
[PlyCount "162"]
[EventDate "2022.09.17"]
[EventType "team-tourn"]
[EventCountry "ESP"]
[SourceTitle "playchess.com"]
[Source "ChessBase"]
[SourceQuality "1"]
[TimeControl "5400+30"]

{[%evp 22,162,-16,-21,-16,-18,-9,-20,-18,-29,-10,-10,-15,-19,-22,-27,-28,-32,-25,-41,-26,-70,-36,-74,-40,-29,-27,-31,-6,-25,0,-15,24,19,29,-10,-16,-4,-9,-47,-40,-89,-83,-97,-83,-91,-62,-49,-51,-91,-35,-35,-35,-71,-35,-35,-35,-35,-35,-35,-35,-35,-35,-35,-35,-35,-35,-92,-92,-92,-92,-92,-92,-92,-92,-212,-212,-212,-212,-212,-158,-212,-67,-390,-340,-29947,-12577,-29957,-29962,-29959,-29962,-29949,-29954,-29976,-29978,-29974,-12847,-12837,-12846,-29937,-6444,-29951,-29955,-29957,-29951,-12794,-10788,-6452,-5106,-1088,-959,-29979,-29980,-29980,-29981,-29981,-29980,-29980,-29974,-29974,-29975,-29976,-29975,-29976,-29977,-29976,-29977,-29980,-29981,-29981,-29982,-29982,-29981,-29981,-29982,-29982,-29981,-29981,-29981,-29981,-29974,-29993,-29994]} 1. e4 e6 2. d4 d5 3. Nd2 dxe4 4. Nxe4 Nd7 5. Nf3 Ngf6 6. Bd3 Nxe4 7. Bxe4 Nf6 8. Bd3 c5 9. O-O cxd4 10. Bb5+ Bd7 11. Bxd7+ Qxd7 12. Qxd4 Qxd4 {C07: French Tarrasch: 3...c5, 4 Ngf3 and 4 exd5 Qxd5.} 13. Nxd4 Bc5 14. Nb3 Bb6 {The position is equal.} 15. Bd2 {[#]} Rc8 $146 ({Predecessor:} 15... Ne4 16. Ba5 Bxa5 17. Nxa5 O-O-O 18. Nb3 Nd6 19. Nd2 Rd7 20. Rfe1 Rhd8 21. Kf1 Nf5 22. Nf3 Nd4 23. Nxd4 Rxd4 {½-½ (55) Krivec,J (2309)-Zatonskih,A (2480) Khanty-Mansiysk 2010}) 16. Rac1 O-O 17. c4 Rfd8 18. Bg5 Rd7 19. Bxf6 gxf6 20. Rc2 f5 21. Nd2 Ba5 {Black has more active pieces. The white rooks are badly placed.} 22. Nf3 b5 23. c5 Rd5 24. Rfc1 e5 {[%cal Be6e5,Be5e4][%mdl 32]} 25. g3 e4 26. Nh4 Bd2 27. Rd1 e3 {White must now prevent ...e2.} 28. Kf1 {Hoping for fxe3.} (28. Nf3 $5 {[%cal Rb2b4]}) 28... Rdxc5 (28... Rcxc5 {is more complex.} 29. Rxc5 Rxc5 30. Ke2 Rc2) 29. Rxc5 Rxc5 30. fxe3 Bxe3 $11 {[%mdl 4096] Endgame KRB-KRN} 31. Re1 (31. b4 $15 {might be stronger.} Re5 32. Ng2) 31... f4 $17 32. Ng2 Bc1 33. Nxf4 Bxf4 34. gxf4 {KR-KR} Rc4 35. f5 Rf4+ (35... Kg7 $17 36. Re2 Rc5) 36. Kg2 $15 Rxf5 37. Re8+ $1 Kg7 38. Ra8 Rc5 39. Rxa7 Rc2+ 40. Kg3 Rxb2 41. Ra6 f6 {[%cal Bf7f6,Bf6f5][%mdl 32]} 42. h3 Kg6 43. Ra5 Rb4 44. Kf3 (44. a3 $15 Rb1 45. a4) 44... h5 $17 {[%cal Bh7h5,Bh5h4][%mdl 32]} 45. Kg3 h4+ 46. Kf3 f5 47. Ra6+ Kg5 48. Ra8 (48. Ra5 $17) 48... Rf4+ 49. Ke3 {White threatens Rg8+ and mate.} Ra4 50. Rg8+ Kf6 51. Rb8 (51. Rg2 $17) 51... b4 ({Black should try} 51... Rxa2 $19 {And now ...Rb2 would win.} 52. Rxb5 Kg5) 52. Kf3 $2 {[%mdl 8192] Loses the game.} (52. Rf8+ $15 Ke6 53. Re8+ Kd7 54. Rb8) 52... Ke5 $1 $19 {...Ra3+ is the strong threat.} 53. Rb5+ $2 {[#]} (53. Re8+ $19 Kd4 54. Re2) 53... Kd4 $1 54. Rxf5 Rxa2 55. Kg4 b3 56. Kxh4 b2 57. Rb5 {[#]} Kc3 $1 58. Kg5 {[#]} Ra5 $3 {[%mdl 512]} 59. Rxa5 b1=Q {KQ-KR} 60. Rf5 Qg1+ (60... Qd3 $142 61. Kg4 Kd4 62. Rf4+ Ke5 63. Rf2 Qe3 64. Rf5+ Ke4 65. Rf8 Qg1+ 66. Kh4 Qd4 67. Rf1 Qe3 68. Rf6 Qc1 69. Kg4 Qc8+ 70. Kg5 Qd8 71. Kg6 Qg8+ 72. Kh6 Ke5 73. Rf1 Qc4 74. Rf8 Qb4 75. Kg7 Qe7+ 76. Rf7 Qg5+ 77. Kh7 Ke6 78. Ra7 Qh4+ 79. Kg8 Qg3+ 80. Rg7 Qxh3 81. Rg6+ Kf5 82. Rg7 Qb3+ 83. Kh7 Qd5 84. Ra7 Qd4 85. Rf7+ Kg5 86. Rc7 Qe4+ 87. Kg8 Qe6+ 88. Kh7 Kf6 89. Rg7 Qe8 90. Ra7 Qh5+ 91. Kg8 Qd5+ 92. Kh8 Qh1+ 93. Kg8 Qg1+ 94. Kh7 Qxa7+ 95. Kh6 Qg7+ 96. Kh5 Qg5#) 61. Kh5 Kd4 62. h4 Ke4 63. Rg5 Qf2 64. Rg4+ Kf5 65. Rg5+ Kf6 {( -> ...Qe2+)} 66. Rg6+ Kf7 {Black mates.} 67. Rg5 Qf3+ 68. Kh6 Qf6+ 69. Kh5 Qf4 70. Rg7+ Kf8 71. Rg5 Qe4 72. Rg4 Qe2 73. Kg5 Qe5+ 74. Kh6 Kf7 75. Rg6 Qf4+ 76. Kh5 Qf3+ 77. Kh6 Qe3+ 78. Kh5 Qe2+ 79. Kh6 Qd2+ 80. Kh5 Qd4 81. Rg7+ Kxg7 {Weighted Error Value: White=0.63/Black=0.33} 0-1

[Event "ESP-ch Teams Primera 2022"]
[Site "Sanxenxo Pontevedra"]
[Date "2022.09.21"]
[Round "5.7"]
[White "Vazquez Igarza, Renier"]
[Black "Alsina Leal, Daniel"]
[Result "1/2-1/2"]
[ECO "A34"]
[WhiteElo "2535"]
[BlackElo "2525"]
[Annotator "TA"]
[PlyCount "80"]
[EventDate "2022.09.17"]
[EventType "team-tourn"]
[EventCountry "ESP"]
[SourceTitle "playchess.com"]
[Source "ChessBase"]
[SourceQuality "1"]
[TimeControl "5400+30"]

{[%evp 9,80,8,3,7,5,0,0,6,15,27,24,23,26,18,31,23,50,14,14,28,16,0,0,0,0,-110,-112,-102,-105,-117,-127,-126,-114,-121,-116,-132,-127,-99,-72,-115,-56,-150,-91,-211,-201,-269,-245,-268,-254,-300,-290,-370,-370,-372,-326,-357,-357,-339,-285,-670,-616,-604,-589,-589,-589,-589,-568,-560,-531,-1068,-1060,-1293,-1163]} 1. Nf3 {[%emt 0:09:40]} c5 {[%emt 0:00:13]} 2. c4 {[%emt 0:00:27]} Nf6 {[%emt 0:00:06]} 3. Nc3 {[%emt 0:00:18]} d5 {[%emt 0:00:19]} 4. cxd5 {[%emt 0:00:08]} Nxd5 {[%emt 0:00:06]} 5. e3 {[%emt 0:00:33]} e6 {[%emt 0:00:51]} 6. Nxd5 {[%emt 0:00:46] A17: English Opening: 1...Nf6 with ...Bb4.} exd5 {[%emt 0:01:00]} 7. Bb5+ {[%emt 0:00:18]} Nc6 {[%emt 0:05:41]} 8. O-O {[%emt 0:02:48] [#] The position is equal.} Be7 $146 {[%emt 0:02:02]} ({Predecessor:} 8... Bd6 9. d4 cxd4 10. Nxd4 O-O 11. Nxc6 bxc6 12. Bxc6 Bxh2+ 13. Kxh2 Qd6+ 14. Kg1 Qxc6 {½-½ (24) Abasov,N (2655)-Ragger,M (2669) Germany 2020}) 9. d4 {[%emt 0:00:49]} O-O {[%emt 0:05:32]} 10. dxc5 {[%emt 0:01:13]} Bxc5 {[%emt 0:01:07]} 11. Bd2 Qd6 {[%emt 0:32:28]} 12. Rc1 {[%emt 0:16:05]} (12. Qc2 {is more complex.} Bg4 13. Ng5 g6 14. Rac1) 12... Bb6 {[%emt 0:00:27]} 13. Bc3 {[%emt 0:18:52]} Bg4 {[%emt 0:04:31]} 14. Be2 {[%emt 0:00:31]} Rad8 {[%emt 0:05:17]} 15. Qa4 {[%emt 0:06:27]} Bxf3 {[%emt 0:07:31]} 16. Bxf3 {[%emt 0:00:08]} d4 $1 {[%emt 0:01:52][%cal Bd5d4,Bd4c3,Bc3b2][%mdl 32]} 17. Bxc6 {[%emt 0:09:15]} (17. exd4 $11 {keeps the balance.} Nxd4 18. Bxd4 Qxd4 19. Qb5) 17... dxc3 $17 {[%emt 0:01:38]} 18. Be4 {[%emt 0:01:13]} cxb2 $40 {[%emt 0:01:23][%mdl 128] Black attacks with force.} 19. Rb1 {[%emt 0:00:02]} Bc7 {[%emt 0:14:40][%csl Gc7][%cal Rd6h2]} 20. g3 {[%emt 0:00:41]} Qb6 {[%emt 0:00:37]} 21. Qc2 {[%emt 0:00:58][%csl LRb2,LRh7]} Be5 {[%emt 0:00:19]} 22. Bxh7+ {[%emt 0:00:09]} Kh8 {[%emt 0:00:04] White must now prevent ...g6.} 23. Be4 {[%emt 0:00:57]} Rd7 {[%emt 0:04:40]} 24. Qa4 {[%emt 0:04:52]} Rfd8 {[%emt 0:03:12]} (24... Rc7 $17 25. Rfd1 g6) 25. Bf5 {[%emt 0:01:01]} (25. Rbd1 $15 Rxd1 26. Rxd1) 25... Rd2 {[%emt 0:00:47]} ({Black should try} 25... Rd6 26. Qh4+ Kg8 27. Qh7+ Kf8) 26. Bc2 {[%emt 0:01:54]} (26. Rbd1 $17 Rxd1 27. Rxd1 Rxd1+ 28. Qxd1) 26... g6 $19 {[%emt 0:02:11]} 27. Bb3 {[%emt 0:01:56]} Kg7 {[%emt 0:00:30]} 28. Qe4 {[%emt 0:00:07]} Bf6 {[%emt 0:00:32]} 29. h4 {[%emt 0:00:58]} Qc6 {[%emt 0:00:55]} 30. Qxc6 {[%emt 0:02:41]} bxc6 {[%emt 0:00:05]} 31. Kg2 {[%emt 0:00:05]} c5 {[%emt 0:00:59]} 32. Kf3 {[%emt 0:00:19]} R8d3 {[%emt 0:01:31]} 33. Rfd1 {[%emt 0:03:18]} a5 {[%emt 0:02:07][%cal Ba7a5,Ba5a4][%mdl 32]} 34. Bc2 {[%emt 0:02:17]} (34. Rxd2 Rxd2 35. a4) 34... Rxd1 {[%emt 0:01:45] Black is clearly winning.} 35. Bxd1 {[%emt 0:00:02][%mdl 4096] Endgame KRB-KRB} Ra3 {[%emt 0:00:25]} 36. Bb3 {[%emt 0:01:07] [#]} a4 $1 {[%emt 0:00:14]} 37. Bd5 {[%emt 0:00:31] [#]} Rd3 $1 {[%emt 0:00:25]} 38. Ke4 {[%emt 0:00:45]} Rd2 {[%emt 0:00:18]} 39. f4 {[%emt 0:00:22]} Rc2 {[%emt 0:00:47]} 40. a3 {[%emt 0:01:09]} c4 {[%emt 0:00:37][%mdl 32768] Weighted Error Value: White=0.60/Black=0.12 (very precise) . An unexpected result.} 1/2-1/2

[Event "ESP-ch Teams Primera 2022"]
[Site "Sanxenxo Pontevedra"]
[Date "2022.09.21"]
[Round "5.8"]
[White "Lorenzo De La Riva, Lazaro"]
[Black "Pulvett Marin, Daniel Eduardo"]
[Result "0-1"]
[ECO "B51"]
[WhiteElo "2430"]
[BlackElo "2497"]
[Annotator "TA"]
[PlyCount "56"]
[EventDate "2022.09.17"]
[EventType "team-tourn"]
[EventCountry "ESP"]
[SourceTitle "playchess.com"]
[Source "ChessBase"]
[SourceQuality "1"]
[TimeControl "5400+30"]

{[%evp 9,55,21,24,32,23,46,47,45,14,0,0,0,0,0,0,-75,562,-771,-78,-74,-39,-60,-50,-66,-75,-193,-201,-249,-246,-249,-272,-690,-695,-1147,-1141,-29988,-29989,-29990,-29991,-29992,-29991,-29991,-29984,-29982,-29983,-29994,-29995,-29999]} 1. e4 c5 2. Nf3 d6 3. Bb5+ Nd7 4. Ba4 Ngf6 5. O-O Nxe4 6. Re1 $1 {B51: Sicilian: Moscow Variation (3 Bb5+) without 3...Bd7.} Nef6 7. d4 cxd4 8. Nxd4 {Hoping for Bf4. White is slightly better.} ({Of course not} 8. Qxd4 e5 $15) 8... e6 9. c4 Be7 10. Rxe6 $1 fxe6 11. Nxe6 Qa5 {Strongly threatening ...Kf7.} 12. Bd2 {[#]} (12. c5 $1 $11 {remains equal.} b5 13. Bxb5) 12... Kf7 $146 {[%mdl 8192]} ({Predecessor:} 12... Qb6 13. Be3 Qxb2 14. Bd4 Qb4 15. Nc7+ Kd8 16. Nxa8 Nc5 {1-0 (26) Gullaksen,E (2344)-Wagner,D (2581) Chess.com INT 2020}) 13. Nc7 {[%mdl 8192]} (13. Bxa5 $18 Kxe6 14. Nc3) 13... Qe5 $2 (13... Qxc7 $19 {has better winning chances.} 14. Nc3 Nb6) 14. Bc3 Qf4 (14... Qg5 $5 {[%cal Rd7c5]} 15. Nxa8 Nc5 $17) 15. g3 Qh6 {[%cal Od7c5] Threatens to win with ...Nc5!} (15... Qxc4 $2 16. Bb3 Qxb3 17. Qxb3+ d5 18. Bxf6 Nxf6 19. Nxa8 $18) 16. Nxa8 {Nc7 is the strong threat.} Ne5 {aiming for ...Bg4.} 17. Bxe5 (17. Nd2 $17 {is the only way for White.} Bg4 18. Qb3) 17... dxe5 $19 {[%cal Bd6e5,Be5e4][%mdl 32]} ({Weaker is} 17... Bg4 18. f3 dxe5 19. fxg4 $11) 18. Nc7 {[#]} Rd8 $1 $40 {[%mdl 1152] Black has strong compensation. Black attacks with force.} 19. Nd5 {[#]} Bc5 $1 20. Qf3 (20. h4 e4 21. Qc2 (21. Nbc3 $2 Qg6 $19)) 20... Bg4 {A strong pair of Bishops.} 21. Qd3 e4 {( -> ...Bxf2+)} 22. Qc3 {[#]} Bxf2+ $1 {[%mdl 576] Deflection, Decoy. Black mates.} 23. Kxf2 (23. Kg2 Qh3+) 23... Qxh2+ 24. Kf1 Bh3+ 25. Ke1 Qg1+ 26. Kd2 Nxd5 27. cxd5 Rxd5+ 28. Kc2 Qd1# {Weighted Error Value: White=1.09/Black=0.36} 0-1